fUSD/lending_fUSD_20241003
["ID","MTS","AMOUNT","RATE_DAILY","PERIOD"]
[339757853,1727952633071,-150.0,0.00010819,2]
[339757854,1727952633081,-150.0,0.00010819,2]
[339757855,1727952633093,-150.0,0.0001082,2]
[339757856,1727952633103,-150.0,0.00010823,2]
[339757857,1727952633112,-150.0,0.00010824,2]
[339757858,1727952633122,-150.0,0.00010833,2]
[339757859,1727952633131,-113.62131349,0.00010838,2]
[339757860,1727952633144,-36.37868651,0.00010838,2]
[339757861,1727952633154,-150.0,0.00010839,2]
[339757862,1727952633164,-150.0,0.00010839,2]
[339757863,1727952633174,-102.97131349,0.0001084,2]
[339757864,1727952633295,-47.02868651,0.0001084,2]
[339757865,1727952633306,-150.0,0.00010841,2]
[339757866,1727952633316,-150.0,0.00010841,2]
[339757867,1727952633325,-526.0268,0.00010843,2]
[339757868,1727952633335,-150.0,0.00010845,2]
[339757869,1727952633344,-150.0,0.00010847,2]
[339757870,1727952633353,-150.0,0.00010847,2]
[339757871,1727952633363,-150.0,0.00010849,2]
[339757872,1727952633373,-1500.0,0.0001085,2]
[339757873,1727952633382,-150.0,0.00010851,2]
[339757874,1727952633392,-150.0,0.00010854,2]
[339757875,1727952633401,-150.0,0.00010855,2]
[339757876,1727952633411,-150.0,0.00010858,2]
[339757877,1727952633421,-150.0,0.00010865,2]
[339757878,1727952633430,-150.0,0.00010867,2]
[339757879,1727952633440,-592.74048635,0.00010876,2]
[339757880,1727952633457,-622.0,0.00010876,2]
[339757881,1727952633469,-285.25951365,0.00010876,2]
[339757882,1727952633479,-150.0,0.00010881,2]
[339757883,1727952633489,-150.0,0.00010882,2]
[339757884,1727952633500,-150.0,0.00010885,2]
[339757885,1727952633509,-150.0,0.00010888,2]
[339757886,1727952633519,-162.4216167,0.0001089,2]
[339757887,1727952633529,-58.33886965,0.00010892,2]
[339757888,1727952633541,-91.66113035,0.00010892,2]
[339757889,1727952633551,-984.29382155,0.00010899,2]
[339757890,1727952633562,-992.32592759,0.00010899,2]
[339757891,1727952633580,-1382.78807392,0.00010899,2]
[339757892,1727952633593,-268.07010932,0.00010899,2]
[339757893,1727952633634,-1378.29577402,0.00010899,2]
[339757894,1727952633673,-427.51880542,0.00010899,2]
[339757895,1727952633732,-1602.76914189,0.00010899,2]
[339757896,1727952633793,-344.2993073,0.00010899,2]
[339757897,1727952633803,-500.0,0.000109,2]
[339757898,1727952633813,-95.52794249,0.000109,2]
[339757899,1727952633828,-484.07279341,0.000109,2]
[339757900,1727952633841,-1517.42729465,0.000109,2]
[339757901,1727952633866,-708.14,0.000109,2]
[339757902,1727952633878,-3804.41474252,0.000109,2]
[339757903,1727952633890,-9820.90752693,0.000109,2]
[339757904,1727952633902,-1203.9752,0.000109,2]
[339757905,1727952633912,-767.4464,0.000109,2]
[339757906,1727952633922,-8492.33620791,0.000109,2]
[339757907,1727952633932,-940.2098,0.000109,2]
[339757908,1727952633941,-4998.1333,0.000109,2]
[339757909,1727952633951,-7573.132,0.000109,2]
[339757910,1727952633963,-4390.2506,0.000109,2]
[339757911,1727952633973,-1000.0,0.000109,2]
[339757912,1727952633983,-321.4929109,0.000109,2]
[339757913,1727952633992,-178.47799185,0.000109,2]
[339757914,1727952634002,-178.47799182,0.000109,2]
[339757915,1727952634012,-178.47799182,0.000109,2]
[339757916,1727952634022,-178.47799182,0.000109,2]
[339757917,1727952634033,-178.47799182,0.000109,2]
[339757918,1727952634043,-177.09486768,0.000109,2]
[339757919,1727952634052,-178.850212,0.000109,2]
[339757920,1727952634063,-150.0,0.00010903,2]
[339757921,1727952634073,-150.0,0.00010908,2]
[339757922,1727952634084,-500.0,0.00010912,2]
[339757923,1727952634094,-150.0,0.00010914,2]
[339757924,1727952634105,-150.0,0.00010914,2]
[339757925,1727952634115,-150.0,0.00010917,2]
[339757926,1727952634125,-150.0,0.0001092,2]
[339757927,1727952634135,-150.0,0.00010921,2]
[339757928,1727952634145,-150.0,0.00010925,2]
[339757929,1727952634155,-150.0,0.00010927,2]
[339757930,1727952634165,-150.0,0.00010928,2]
[339757931,1727952634174,-150.0,0.00010931,2]
[339757932,1727952634184,-150.0,0.00010934,2]
[339757933,1727952634194,-150.0,0.00010936,2]
[339757934,1727952634203,-150.0,0.00010938,2]
[339757935,1727952634220,-150.0,0.00010941,2]
[339757936,1727952634230,-150.0,0.00010943,2]
[339757937,1727952634239,-150.0,0.00010947,2]
[339757938,1727952634249,-150.0,0.0001095,2]
[339757939,1727952634259,-1000.0,0.00010952,2]
[339757940,1727952634269,-150.0,0.00010952,2]
[339757941,1727952634279,-150.0,0.00010952,2]
[339757942,1727952634288,-575.92,0.00010954,2]
[339757943,1727952634298,-150.0,0.00010956,2]
[339757944,1727952634308,-150.0,0.00010957,2]
[339757945,1727952634317,-176.66,0.00010959,2]
[339757946,1727952634327,-238.92,0.00010959,2]
[339757947,1727952634337,-150.0,0.00010959,2]
[339757948,1727952634346,-150.0,0.00010962,2]
[339757949,1727952634356,-150.0,0.00010962,2]
[339757950,1727952634366,-150.0,0.00010962,2]
[339757951,1727952634376,-150.0,0.00010964,2]
[339757952,1727952634387,-150.0,0.00010965,2]
[339757953,1727952634396,-150.0,0.00010966,2]
[339757954,1727952634405,-500.0,0.00010973,2]
[339757955,1727952634415,-154.82,0.0001098,2]
[339757956,1727952634425,-150.0,0.00010986,2]
[339757957,1727952634434,-150.0,0.00010986,2]
[339757958,1727952634444,-150.0,0.00010986,2]
[339757959,1727952634453,-150.0,0.00010986,2]
[339757960,1727952634470,-151.18089715,0.00010986,2]
[339757961,1727952634480,-32871.3017683,0.00010986,2]
[339757962,1727952634501,-1879.8522855,0.00010986,2]
[339757963,1727952634513,-160.8459462,0.00010986,2]
[339757964,1727952634523,-500.0,0.00010989,2]
[339757965,1727952634534,-211.37529349,0.00010989,2]
[339757966,1727952634544,-5225.57876031,0.0001099,2]
[339757968,1727952638328,-150.0,0.00010725,2]
[339757969,1727952638337,-150.0,0.00010731,2]
[339757970,1727952638346,-150.0,0.00010732,2]
[339757971,1727952638355,-150.0,0.00010733,2]
[339757972,1727952638364,-150.0,0.00010733,2]
[339757973,1727952638373,-150.0,0.00010734,2]
[339757974,1727952638382,-150.0,0.00010738,2]
[339757975,1727952638391,-150.0,0.00010741,2]
[339757976,1727952638401,-150.0,0.00010748,2]
[339757977,1727952638411,-150.0,0.00010751,2]
[339757978,1727952638420,-150.0,0.00010756,2]
[339757979,1727952638430,-150.0,0.00010758,2]
[339757980,1727952638439,-150.0,0.00010759,2]
[339757981,1727952638448,-150.0,0.00010759,2]
[339757982,1727952638458,-150.0,0.00010763,2]
[339757983,1727952638472,-150.0,0.00010763,2]
[339757984,1727952638481,-150.0,0.00010764,2]
[339757985,1727952638491,-150.0,0.00010767,2]
[339757986,1727952638502,-150.0,0.00010769,2]
[339757987,1727952638513,-150.0,0.00010771,2]
[339757988,1727952638523,-150.0,0.00010772,2]
[339757989,1727952638533,-150.0,0.00010774,2]
[339757990,1727952638543,-150.0,0.00010774,2]
[339757991,1727952638553,-50.0,0.00010774,2]
[339757992,1727952638565,-100.0,0.00010774,2]
[339757993,1727952638575,-150.0,0.0001078,2]
[339757994,1727952638585,-150.0,0.00010784,2]
[339757995,1727952638595,-150.0,0.00010787,2]
[339757996,1727952638605,-105.6964493,0.00010802,2]
[339757997,1727952638616,-44.3035507,0.00010802,2]
[339757998,1727952638626,-150.0,0.00010803,2]
[339757999,1727952638635,-150.0,0.00010804,2]
[339758000,1727952638645,-150.0,0.00010805,2]
[339758001,1727952638654,-150.0,0.00010809,2]
[339758002,1727952638664,-150.0,0.00010812,2]
[339758003,1727952638673,-150.0,0.00010815,2]
[339758004,1727952638682,-150.0,0.00010817,2]
[339758005,1727952638692,-150.0,0.00010819,2]
[339758006,1727952638701,-150.0,0.00010823,2]
[339758007,1727952638715,-150.0,0.00010823,2]
[339758008,1727952638730,-150.0,0.00010823,2]
[339758009,1727952638739,-150.0,0.00010828,2]
[339758010,1727952638748,-150.0,0.00010829,2]
[339758011,1727952638757,-150.0,0.00010829,2]
[339758012,1727952638766,-150.0,0.0001083,2]
[339758013,1727952638775,-150.0,0.00010833,2]
[339758014,1727952638785,-150.0,0.00010836,2]
[339758015,1727952638794,-150.0,0.00010836,2]
[339758016,1727952638803,-95.52360965,0.00010838,2]
[339758017,1727952638815,-54.47639035,0.00010838,2]
[339758018,1727952638831,-150.0,0.00010842,2]
[339758019,1727952638841,-150.0,0.00010844,2]
[339758020,1727952638852,-150.0,0.00010846,2]
[339758021,1727952638862,-150.0,0.00010848,2]
[339758022,1727952638872,-150.0,0.0001086,2]
[339758023,1727952638882,-150.0,0.00010861,2]
[339758024,1727952638892,-150.0,0.00010862,2]
[339758025,1727952638902,-150.0,0.00010864,2]
[339758026,1727952638912,-150.0,0.00010865,2]
[339758027,1727952638922,-150.0,0.00010865,2]
[339758028,1727952638931,-150.0,0.0001087,2]
[339758029,1727952638941,-150.0,0.0001087,2]
[339758030,1727952638950,-150.0,0.00010881,2]
[339758031,1727952638962,-42.60397779,0.00010887,2]
[339758032,1727952638978,-107.39602221,0.00010887,2]
[339758033,1727952638988,-150.0,0.00010898,2]
[339758034,1727952638997,-150.0,0.00010899,2]
[339758035,1727952639008,-150.0,0.00010899,2]
[339758036,1727952639018,-150.0,0.00010899,2]
[339758037,1727952639028,-150.0,0.00010904,2]
[339758038,1727952639038,-150.0,0.00010905,2]
[339758039,1727952639047,-150.0,0.00010909,2]
[339758040,1727952639057,-150.0,0.00010911,2]
[339758041,1727952639068,-150.0,0.0001092,2]
[339758042,1727952639078,-150.0,0.00010922,2]
[339758043,1727952639087,-150.0,0.00010922,2]
[339758044,1727952639097,-150.0,0.00010928,2]
[339758045,1727952639107,-150.0,0.0001093,2]
[339758046,1727952639116,-150.0,0.00010934,2]
[339758047,1727952639125,-150.0,0.00010937,2]
[339758048,1727952639135,-150.0,0.00010939,2]
[339758049,1727952639144,-150.0,0.00010942,2]
[339758050,1727952639153,-150.0,0.00010942,2]
[339758051,1727952639162,-150.0,0.00010951,2]
[339758052,1727952639171,-150.0,0.00010955,2]
[339758053,1727952639180,-150.0,0.00010959,2]
[339758054,1727952639190,-150.0,0.00010961,2]
[339758055,1727952639199,-150.0,0.00010962,2]
[339758057,1727952639209,-150.0,0.00010964,2]
[339758059,1727952639225,-150.0,0.00010965,2]
[339758061,1727952639234,-150.0,0.00010969,2]
[339758063,1727952639244,-150.0,0.0001097,2]
[339758065,1727952639254,-123.31133201,0.0001097,2]
[339758070,1727952639287,-150.0,0.00010934,2]
[339758072,1727952639297,-26.68866799,0.0001097,2]
[339758074,1727952639307,-121.28822214,0.00010971,2]
[339758114,1727952639866,-150.0,0.00010732,2]
[339758116,1727952639876,-150.0,0.00010752,2]
[339758118,1727952639886,-150.0,0.00010762,2]
[339758120,1727952639898,-150.0,0.00010778,2]
[339758122,1727952639907,-28.71177786,0.00010971,2]
[339758124,1727952639917,-150.0,0.00010974,2]
[339758126,1727952639926,-150.0,0.00010976,2]
[339758128,1727952639935,-150.0,0.00010977,2]
[339758130,1727952639946,-150.0,0.00010987,2]
[339758132,1727952639955,-150.0,0.00010988,2]
[339758134,1727952639966,-3662.88822214,0.0001099,2]
[339758136,1727952639977,-698.46349581,0.0001099,2]
[339758138,1727952639989,-500.0,0.0001099,2]
[339758140,1727952640000,-3049.26318714,0.0001099,2]
[339758142,1727952640011,-717.96206054,0.0001099,2]
[339758144,1727952640023,-2510.72,0.0001099,2]
[339758147,1727952640034,-8752.22233078,0.0001099,2]
[339758152,1727952640078,-150.0,0.00010943,2]
[339758154,1727952640087,-150.0,0.00010975,2]
[339758156,1727952640096,-47.64821111,0.0001099,2]
[339758158,1727952640107,-88161.89124824,0.0001099,2]
[339758164,1727952640152,-150.0,0.00010914,2]
[339758166,1727952640161,-150.0,0.00010917,2]
[339758168,1727952640170,-150.0,0.00010951,2]
[339758169,1727952640179,-817649.55547644,0.0001099,2]
[339758171,1727952640188,-564.62649077,0.0001099,2]
[339758173,1727952640198,-150.0,0.00010992,2]
[339758175,1727952640208,-150.0,0.00010992,2]
[339758177,1727952640220,-150.0,0.00010993,2]
[339758179,1727952640229,-150.0,0.00010995,2]
[339758181,1727952640239,-150.0,0.00010997,2]
[339758183,1727952640248,-9832.5366324,0.00010998,2]
[339758185,1727952640258,-328713.90714651,0.00011,2]
[339758238,1727952640757,-150.0,0.00010737,2]
[339758240,1727952640766,-150.0,0.00010741,2]
[339758242,1727952640775,-56.32461707,0.00010753,2]
[339758245,1727952640799,-93.67538293,0.00010753,2]
[339758247,1727952640808,-150.0,0.0001076,2]
[339758249,1727952640819,-150.0,0.00010764,2]
[339758252,1727952640829,-150.0,0.00010785,2]
[339758254,1727952640839,-150.0,0.0001079,2]
[339758255,1727952640848,-150.0,0.00010792,2]
[339758257,1727952640858,-150.0,0.00010794,2]
[339758259,1727952640869,-150.0,0.000108,2]
[339758261,1727952640879,-150.0,0.000108,2]
[339758264,1727952640889,-150.0,0.000108,2]
[339758266,1727952640900,-150.0,0.00010801,2]
[339758268,1727952640910,-150.0,0.00010809,2]
[339758270,1727952640920,-150.0,0.0001081,2]
[339758272,1727952640929,-150.0,0.00010813,2]
[339758274,1727952640939,-150.0,0.00010828,2]
[339758276,1727952640949,-150.0,0.0001083,2]
[339758278,1727952640958,-150.0,0.00010833,2]
[339758280,1727952640973,-150.0,0.00010834,2]
[339758282,1727952640984,-150.0,0.00010838,2]
[339758284,1727952640995,-150.0,0.00010838,2]
[339758286,1727952641005,-150.0,0.00010856,2]
[339758288,1727952641015,-150.0,0.00010857,2]
[339758290,1727952641026,-150.0,0.00010871,2]
[339758292,1727952641035,-150.0,0.00010885,2]
[339758294,1727952641045,-150.0,0.00010886,2]
[339758296,1727952641055,-150.0,0.00010892,2]
[339758298,1727952641065,-150.0,0.00010895,2]
[339758300,1727952641075,-150.0,0.00010906,2]
[339758302,1727952641084,-150.0,0.00010912,2]
[339758304,1727952641093,-150.0,0.00010914,2]
[339758306,1727952641103,-150.0,0.00010918,2]
[339758308,1727952641111,-150.0,0.00010921,2]
[339758310,1727952641120,-88.55017943,0.00010922,2]
[339758312,1727952641131,-61.44982057,0.00010922,2]
[339758314,1727952641140,-150.0,0.00010928,2]
[339758316,1727952641150,-150.0,0.0001093,2]
[339758318,1727952641159,-150.0,0.00010942,2]
[339758320,1727952641168,-150.0,0.00010945,2]
[339758321,1727952641177,-150.0,0.00010946,2]
[339758323,1727952641187,-150.0,0.00010948,2]
[339758325,1727952641196,-150.0,0.00010949,2]
[339758327,1727952641205,-150.0,0.00010956,2]
[339758329,1727952641216,-150.0,0.0001096,2]
[339758331,1727952641225,-150.0,0.00010981,2]
[339758333,1727952641234,-150.0,0.00010985,2]
[339758335,1727952641243,-150.0,0.00010995,2]
[339758337,1727952641252,-150.0,0.00010996,2]
[339758339,1727952641262,-7909.05017943,0.00011,2]
[339758341,1727952641273,-706.04,0.00011,2]
[339758343,1727952641284,-3048.32772882,0.00011,2]
[339758346,1727952641301,-425.26754798,0.00011,2]
[339758351,1727952641354,-150.0,0.00010813,2]
[339758352,1727952641364,-150.0,0.00010854,2]
[339758353,1727952641373,-97.63098387,0.00011,2]
[339758354,1727952641383,-1610.53421101,0.00011,2]
[339758355,1727952641394,-500.0,0.00011,2]
[339758356,1727952641531,-150.0,0.0001093,2]
[339758357,1727952641540,-11450.0,0.00011,2]
[339758358,1727952641637,-150.0,0.00010844,2]
[339758359,1727952641647,-11819.46258199,0.00011,2]
[339758360,1727952641656,-1923.82067225,0.00011,2]
[339758361,1727952641665,-72269.89762777,0.00011,2]
[339758362,1727952641690,-150.0,0.00010749,2]
[339758363,1727952641699,-150.0,0.00010953,2]
[339758364,1727952641709,-29832.31558998,0.00011,2]
[339758365,1727952641721,-354.43499999,0.00011,2]
[339758367,1727952641732,-610.076347,0.00011,2]
[339758521,1727952643343,-150.0,0.00010715,2]
[339758523,1727952643352,-150.0,0.00010726,2]
[339758525,1727952643361,-150.0,0.00010726,2]
[339758527,1727952643371,-150.0,0.00010729,2]
[339758529,1727952643380,-150.0,0.00010732,2]
[339758531,1727952643390,-150.0,0.00010733,2]
[339758533,1727952643400,-150.0,0.00010738,2]
[339758535,1727952643409,-150.0,0.00010742,2]
[339758537,1727952643419,-150.0,0.00010742,2]
[339758539,1727952643428,-150.0,0.00010753,2]
[339758541,1727952643437,-150.0,0.00010754,2]
[339758543,1727952643446,-150.0,0.00010758,2]
[339758545,1727952643456,-150.0,0.00010759,2]
[339758547,1727952643467,-150.0,0.00010761,2]
[339758549,1727952643476,-150.0,0.00010762,2]
[339758551,1727952643485,-150.0,0.00010763,2]
[339758553,1727952643494,-150.0,0.00010766,2]
[339758555,1727952643504,-150.0,0.00010766,2]
[339758557,1727952643513,-150.0,0.00010767,2]
[339758559,1727952643523,-150.0,0.00010768,2]
[339758561,1727952643533,-150.0,0.00010769,2]
[339758563,1727952643543,-150.0,0.00010775,2]
[339758565,1727952643552,-150.0,0.00010782,2]
[339758567,1727952643562,-150.0,0.00010782,2]
[339758569,1727952643571,-150.0,0.00010783,2]
[339758571,1727952643580,-150.0,0.0001079,2]
[339758573,1727952643590,-150.0,0.00010793,2]
[339758575,1727952643599,-150.0,0.00010796,2]
[339758603,1727952643864,-150.0,0.00010803,2]
[339758605,1727952643884,-150.0,0.00010806,2]
[339758607,1727952643894,-150.0,0.00010806,2]
[339758609,1727952643908,-150.0,0.00010808,2]
[339758611,1727952643917,-150.0,0.00010837,2]
[339758613,1727952643927,-150.0,0.0001084,2]
[339758615,1727952643937,-150.0,0.00010848,2]
[339758617,1727952643946,-150.0,0.00010848,2]
[339758619,1727952643955,-150.0,0.0001085,2]
[339758621,1727952643969,-150.0,0.00010853,2]
[339758623,1727952643986,-150.0,0.00010853,2]
[339758626,1727952643996,-150.0,0.00010859,2]
[339758629,1727952644006,-150.0,0.00010867,2]
[339758632,1727952644016,-150.0,0.00010868,2]
[339758634,1727952644025,-150.0,0.00010874,2]
[339758637,1727952644035,-150.0,0.00010883,2]
[339758640,1727952644045,-150.0,0.00010885,2]
[339758642,1727952644054,-150.0,0.00010896,2]
[339758644,1727952644064,-150.0,0.00010896,2]
[339758646,1727952644073,-150.0,0.00010898,2]
[339758648,1727952644083,-150.0,0.00010899,2]
[339758650,1727952644093,-150.0,0.000109,2]
[339758652,1727952644103,-150.0,0.00010902,2]
[339758654,1727952644112,-150.0,0.00010907,2]
[339758656,1727952644122,-150.0,0.00010908,2]
[339758658,1727952644133,-150.0,0.00010913,2]
[339758660,1727952644143,-150.0,0.00010924,2]
[339758662,1727952644153,-150.0,0.00010924,2]
[339758665,1727952644163,-150.0,0.00010924,2]
[339758667,1727952644173,-150.0,0.0001093,2]
[339758669,1727952644183,-150.0,0.00010932,2]
[339758671,1727952644194,-150.0,0.00010933,2]
[339758673,1727952644203,-150.0,0.00010934,2]
[339758674,1727952644213,-150.0,0.00010942,2]
[339758677,1727952644224,-150.0,0.00010946,2]
[339758678,1727952644234,-150.0,0.00010957,2]
[339758680,1727952644244,-150.0,0.00010959,2]
[339758682,1727952644253,-150.0,0.0001096,2]
[339758684,1727952644263,-103.93457314,0.00010962,2]
[339758687,1727952644275,-46.06542686,0.00010962,2]
[339758689,1727952644285,-150.0,0.00010969,2]
[339758691,1727952644295,-150.0,0.00010974,2]
[339758693,1727952644304,-150.0,0.00010976,2]
[339758695,1727952644314,-150.0,0.00010984,2]
[339758697,1727952644324,-13.46001314,0.00010987,2]
[339758700,1727952644342,-150.0,0.00010836,2]
[339758702,1727952644351,-136.53998686,0.00010987,2]
[339758704,1727952644361,-150.0,0.00010987,2]
[339758706,1727952644370,-150.0,0.00010988,2]
[339758708,1727952644380,-150.0,0.00010988,2]
[339758709,1727952644390,-150.0,0.0001099,2]
[339758712,1727952644400,-150.0,0.00010991,2]
[339758713,1727952644409,-150.0,0.00010992,2]
[339758715,1727952644419,-4689.12931167,0.00011,2]
[339758718,1727952644430,-2833.13889606,0.00011,2]
[339758720,1727952644442,-1395.13210903,0.00011,2]
[339758724,1727952644473,-150.0,0.00010755,2]
[339758726,1727952644483,-131.24946501,0.00010933,2]
[339758728,1727952644494,-18.75053499,0.00010933,2]
[339758730,1727952644504,-912.3822546,0.00011,2]
[339758732,1727952644516,-12175.6,0.00011,2]
[339758736,1727952644540,-150.0,0.00010964,2]
[339758738,1727952644549,-185.89524188,0.00011,2]
[339758742,1727952644577,-150.0,0.00010979,2]
[339758743,1727952644586,-505779.47139326,0.00011,2]
[339758745,1727952644595,-375.0,0.00011,2]
[339758747,1727952644605,-704717.92571963,0.00011,2]
[339758750,1727952644616,-432.0,0.00011,2]
[339758752,1727952644627,-57043.59413351,0.00011,2]
[339758758,1727952644676,-150.0,0.00010718,2]
[339758760,1727952644685,-150.0,0.00010815,2]
[339758762,1727952644695,-150.0,0.0001087,2]
[339758764,1727952644705,-80.95163184,0.00010908,2]
[339758766,1727952644718,-69.04836816,0.00010908,2]
[339758768,1727952644728,-150.0,0.00010973,2]
[339758770,1727952644737,-78.90539271,0.00011,2]
[339758772,1727952644748,-293.30521316,0.00011,2]
[339758774,1727952644759,-1310.89655929,0.00011,2]
[339758776,1727952644770,-735.915,0.00011,2]
[339758779,1727952644782,-242336.16456433,0.00011,2]
[339758781,1727952644793,-715.36994382,0.00011,2]
[339758783,1727952644805,-5379.86212123,0.00011,2]
[339758789,1727952644859,-150.0,0.00010887,2]
[339758791,1727952644869,-112.89000001,0.00011,2]
[339758793,1727952644880,-19225.41725305,0.00011,2]
[339758960,1727952646646,-150.0,0.0001072,2]
[339758962,1727952646655,-150.0,0.0001073,2]
[339758964,1727952646664,-150.0,0.00010735,2]
[339758966,1727952646673,-150.0,0.00010735,2]
[339758968,1727952646682,-150.0,0.00010736,2]
[339758970,1727952646691,-150.0,0.0001074,2]
[339758972,1727952646701,-150.0,0.00010745,2]
[339758974,1727952646710,-150.0,0.00010747,2]
[339758976,1727952646721,-150.0,0.00010763,2]
[339758978,1727952646731,-150.0,0.00010769,2]
[339758980,1727952646740,-150.0,0.00010784,2]
[339758982,1727952646749,-150.0,0.00010784,2]
[339758984,1727952646759,-150.0,0.00010788,2]
[339758986,1727952646768,-150.0,0.0001079,2]
[339758988,1727952646778,-150.0,0.00010791,2]
[339758990,1727952646787,-150.0,0.00010794,2]
[339758992,1727952646796,-150.0,0.00010795,2]
[339758994,1727952646806,-150.0,0.00010804,2]
[339758996,1727952646815,-150.0,0.00010807,2]
[339758998,1727952646829,-150.0,0.00010814,2]
[339759000,1727952646838,-150.0,0.00010817,2]
[339759002,1727952646847,-150.0,0.00010817,2]
[339759004,1727952646857,-150.0,0.00010822,2]
[339759006,1727952646867,-150.0,0.00010825,2]
[339759008,1727952646877,-150.0,0.00010827,2]
[339759010,1727952646886,-150.0,0.00010827,2]
[339759012,1727952646895,-150.0,0.00010828,2]
[339759014,1727952646906,-150.0,0.00010831,2]
[339759016,1727952646916,-150.0,0.00010834,2]
[339759018,1727952646925,-150.0,0.00010857,2]
[339759020,1727952646934,-150.0,0.00010863,2]
[339759022,1727952646944,-150.0,0.00010866,2]
[339759024,1727952646953,-150.0,0.00010866,2]
[339759026,1727952646962,-150.0,0.00010866,2]
[339759028,1727952646974,-150.0,0.00010868,2]
[339759030,1727952646983,-150.0,0.00010871,2]
[339759032,1727952646994,-150.0,0.00010874,2]
[339759034,1727952647004,-150.0,0.00010874,2]
[339759036,1727952647013,-150.0,0.00010876,2]
[339759038,1727952647023,-150.0,0.00010879,2]
[339759040,1727952647032,-150.0,0.0001088,2]
[339759069,1727952647314,-150.0,0.00010882,2]
[339759071,1727952647323,-150.0,0.00010887,2]
[339759073,1727952647332,-150.0,0.00010897,2]
[339759075,1727952647342,-40.75,0.00010898,2]
[339759080,1727952647386,-150.0,0.00010728,2]
[339759082,1727952647395,-150.0,0.00010741,2]
[339759084,1727952647404,-109.25,0.00010898,2]
[339759086,1727952647413,-150.0,0.00010904,2]
[339759088,1727952647423,-150.0,0.0001091,2]
[339759090,1727952647432,-150.0,0.00010912,2]
[339759092,1727952647441,-150.0,0.00010915,2]
[339759094,1727952647451,-150.0,0.00010919,2]
[339759096,1727952647460,-150.0,0.00010925,2]
[339759098,1727952647470,-150.0,0.00010926,2]
[339759100,1727952647479,-150.0,0.00010932,2]
[339759102,1727952647489,-150.0,0.00010935,2]
[339759104,1727952647498,-150.0,0.00010939,2]
[339759105,1727952647507,-150.0,0.00010942,2]
[339759106,1727952647516,-150.0,0.00010947,2]
[339759107,1727952647525,-150.0,0.00010966,2]
[339759108,1727952647534,-150.0,0.00010972,2]
[339759109,1727952647543,-150.0,0.00010982,2]
[339759110,1727952647553,-150.0,0.00010989,2]
[339759111,1727952647562,-150.0,0.00010989,2]
[339759112,1727952647571,-239508.63268184,0.00011,2]
[339759407,1727952706639,250.0,9.858e-05,2]
[339759408,1727952711419,-11053.0,0.000105,5]
[339759409,1727952711450,-150.0,0.000107,2]
[339759410,1727952711480,-150.0,0.00010715,2]
[339759411,1727952711509,-150.0,0.00010718,2]
[339759412,1727952711539,-150.0,0.00010721,2]
[339759413,1727952711569,-150.0,0.00010722,2]
[339759414,1727952711597,-150.0,0.00010727,2]